Cogmind - Beta 17.1 @@@ ROGUE MODE // 2026.09.05 @ 15:00:35 Player: Finn Result: Destroyed by S-27 Virus with Autogun Performance ------------- Evolutions (3) 1500 Regions Visited (4) 800 Robots Destroyed (33) 165 Value Destroyed (639) 639 Prototype IDs (1) 20 Alien Tech Used (0) 0 Bonus (0) 0 TOTAL SCORE: 3124 Bonus ------- None Cogmind --------- Core Integrity 0/700 Matter 213/300 Energy 100/100 System Corruption 0% Temperature Cool (0) Movement Core (50) Location -7/Factory Parts ------- > --- POWER (1) -------- (None) > --- PROPULSION (5) --- (None) > --- UTILITY (5) ------ Hacking Suite > --- WEAPON (2) ------- (None) > --- INVENTORY (5) ---- Improved Ion Engine Medium Armor Plating Assault Rifle Heavy Assault Rifle Grenade Launcher Peak State ------------ > --- POWER ------------ Improved Ion Engine > --- PROPULSION ------- VTOL Module Surge Thruster Surge Thruster > --- UTILITY ---------- Small Storage Unit Sensor Array Seismic Detector Utility Shielding Hacking Suite > --- WEAPON ----------- (None) > --- INVENTORY -------- Light Ion Engine Assault Rifle Light Assault Rifle Heavy Assault Rifle Grenade Launcher [Rating: 17] Favorites ----------- Power Light Ion Engine Engine Light Ion Engine Propulsion VTOL Module Wheel Wheel Flight Unit VTOL Module Utility Small Storage Unit Device Seismic Detector Storage Small Storage Unit Hackware Hacking Suite Protection Hardened Light Armor Plating Weapon Assault Rifle Energy Gun Beam Rifle Ballistic Gun Assault Rifle Launcher Grenade Launcher Build | -11 -10 -9 -8 -7 ------- Run | Yrd Mat Mat Mat Fac Slots Evolved 6 | . . 2 2 2 Power . | . . . . . Propulsion 3 | . . 1 1 1 Utility 3 | . . 1 1 1 Weapon . | . . . . . Parts Attached 31 | 8 6 9 6 2 Power 4 | 1 1 1 . 1 Engine 4 | 1 1 1 . 1 Core . | . . . . . Reactor . | . . . . . Propulsion 13 | 3 2 4 4 . Treads . | . . . . . Leg . | . . . . . Wheel 3 | 3 . . . . Hover . | . . . . . Flight 10 | . 2 4 4 . Utility 7 | 2 1 2 1 1 Device 3 | 1 1 1 . . Storage 1 | 1 . . . . Processor . | . . . . . Hackware 1 | . . . . 1 Protection 2 | . . 1 1 . Artifact . | . . . . . Weapon 7 | 2 2 2 1 . Energy Gun 1 | . . 1 . . Energy Cannon . | . . . . . Ballistic Gun 4 | 2 1 1 . . Ballistic Cannon . | . . . . . Launcher 2 | . 1 . 1 . Special Weapon . | . . . . . Impact Weapon . | . . . . . Slashing Weapon . | . . . . . Piercing Weapon . | . . . . . Special Melee Weapon . | . . . . . Unidentified Prototypes 1 | . . . 1 . Parts Lost 19 | . 1 6 4 8 Power 3 | . . 1 1 1 Propulsion 9 | . . 4 2 3 Utility 6 | . 1 . 1 4 Weapon 1 | . . 1 . . Highest Loss Streak 4 | . 1 3 2 4 To Critical Strikes . | . . . . . Average Backups 6 | 2 7 6 7 5 Power 1 | 1 1 1 1 1 Propulsion 1 | . 1 . . . Utility 1 | . 1 1 1 . Weapon 2 | 1 2 2 3 4 Tool/Special . | . . . . . Unused Backups 6 | . 4 . 1 1 Power . | . . . . . Propulsion 4 | . 3 . 1 . Utility 1 | . . . . 1 Weapon 1 | . 1 . . . Tool/Special . | . . . . . Average Slot Usage (%) 84 | . 99 92 70 38 Engine 10 | . 14 10 8 2 Wheel 4 | . 12 . . . Flight 19 | . 15 27 22 7 Device 12 | . 13 14 9 8 Storage 11 | . 14 11 9 7 Hackware 1 | . . . . 7 Protection 5 | . . 7 14 5 Energy Gun 2 | . . 6 3 . Ballistic Gun 14 | . 25 14 3 . Launcher 1 | . 2 . . . Peak Build Rating 17 | 7 10 13 16 17 Average Rating 9 | 4 8 11 12 8 On Entrance 8 | . 7 9 12 13 Avg Prop Armor Cover (%) . | . . . . . Naked Turns . | . . . . . Heaviest Build 20 | 12 14 20 20 11 Greatest Support 26 | 26 20 15 15 11 Greatest Overweight (x) 3 | 1 1 2 1 3 Average Overweight (x) . | . . . . . Largest Inventory Capacity 8 | 8 8 8 8 8 Average Capacity 7 | 7 8 8 8 7 Most Carried 8 | 6 8 8 8 6 Average Carried 6 | 2 7 6 7 5 Final Capacity 8 | 8 8 8 8 5 Final Carried 7 | 4 7 7 7 5 Class Distribution -------------------- 68% | Mutant 20% | Scavenger-Mutant 10% | Sprinter Dominant Class ---------------- Mutant | -10/Materials Scavenger-Mutant | -9/Materials Sprinter | -8/Materials Mutant | -7/Factory Resources | -11 -10 -9 -8 -7 ----------- Run | Yrd Mat Mat Mat Fac Matter Collected 775 | 272 280 223 . . Remotely . | . . . . . Salvage Created 779 | 87 239 439 14 . Parts 61 | 5 19 26 11 . Haulers Intercepted . | . . . . . Recyclers Shooed 1 | . 1 . . . Parts Field Recycled . | . . . . . Retrieved Matter . | . . . . . Parts Self-Destructed . | . . . . . Prevented . | . . . . . Parts Restored . | . . . . . Kills | -11 -10 -9 -8 -7 ------- Run | Yrd Mat Mat Mat Fac Combat Hostiles Destroyed 22 | . 8 11 3 . Guns 16 | . 6 10 . . AOE 5 | . 2 . 3 . Classes Destroyed 9 | 2 4 1 2 . Worker 4 | . 1 . 3 . Builder 1 | . . . 1 . Tunneler 2 | 2 . . . . Recycler 1 | 1 . . . . Watcher 3 | . 2 1 . . Swarmer 8 | . 5 3 . . Cutter 3 | . . . 3 . Grunt 7 | . 3 4 . . Sentry 4 | . . 4 . . Best Kill Streak 7 | 3 3 3 7 . Combat Bots Only 3 | . 3 3 3 . Max Kills in Single Turn 6 | 1 2 1 6 . Gunslinging . | . . . . . Exploded 2 | . 2 . 2 . Melee . | . . . . . Uniques/NPCs Destroyed . | . . . . . Combat | -11 -10 -9 -8 -7 -------- Run | Yrd Mat Mat Mat Fac Hostile Shots Fired 299 | . 41 58 32 168 Missed 106 | . 12 14 14 66 Hits 193 | . 29 44 18 102 Melee 4 | . . . 4 . Projectile 189 | . 29 44 14 102 Critical Strikes 3 | . . . 2 1 Actively Blocked 2 | . . . 2 . Damage Taken 2199 | . 295 575 341 988 Core 964 | . 52 127 82 703 Absorbed by Shields . | . . . . . Redirected to Shielding 50 | . . . 14 36 Core Remaining (%) 83 | 100 79 68 85 . Volleys Fired 89 | 8 34 45 2 . Largest 2 | 2 2 2 1 . Hottest 79 | 40 50 79 30 . Shots Fired 160 | 16 67 75 2 . Gun 157 | 16 66 75 . . Cannon . | . . . . . Launcher 3 | . 1 . 2 . Special . | . . . . . Kinetic 137 | 16 66 55 . . Thermal 20 | . . 20 . . Explosive 3 | . 1 . 2 . Electromagnetic . | . . . . . Robot Hit Streak 14 | 2 5 14 3 . Robot Miss Streak 3 | 1 3 2 . . Penetration Max . | . . . . . Secondary Targets 2 | . 1 1 . . Max Gunslinging Chain 1 | . 1 1 . . Shots Hit Robots 104 | 7 38 57 2 . Core Hits 49 | 4 17 17 11 . Critical Kills 1 | . 1 . . . Critical Parts Destroyed . | . . . . . Critical Strikes 3 | . 1 2 . . Burn 2 | . . 2 . . Destroy 1 | . 1 . . . Melee Attacks . | . . . . . Impact . | . . . . . Slashing . | . . . . . Piercing . | . . . . . Sneak Attacks . | . . . . . Combat Hostiles . | . . . . . Follow-up Attacks . | . . . . . Damage Inflicted 1745 | 90 575 696 369 15 Guns 1235 | 90 449 696 . . Cannons . | . . . . . Explosions 495 | . 126 . 369 . Melee . | . . . . . Ramming 15 | . . . . 15 Kinetic 1030 | 90 449 491 . . Thermal 205 | . . 205 . . Explosive 495 | . 126 . 369 . Electromagnetic . | . . . . . Impact . | . . . . . Slashing . | . . . . . Piercing . | . . . . . Highest Corruption 3 | . 3 . . . Average Corruption 2 | . 2 . . . Corruption Purged . | . . . . . Corruption Blocked . | . . . . . Effects 16 | . 16 . . . Matter Fused 4 | . 4 . . . Heat Flow Errors 5 | . 5 . . . Energy Discharges 2 | . 2 . . . Data Loss (minor) 3 | . 3 . . . Data Loss (major) 1 | . 1 . . . Misfires 1 | . 1 . . . Overload Shots . | . . . . . Overflow Damage 16 | . . . 16 . Projectiles . | . . . . . Explosions 16 | . . . 16 . Melee . | . . . . . Knockbacks . | . . . . . Impact . | . . . . . Kinetic . | . . . . . Secondary . | . . . . . Self-Inflicted Damage 86 | . . . 79 7 Shots 2 | . . . 2 . Rammed 2 | . . . . 2 Targets Rammed 2 | . . . . 2 Kicked . | . . . . . Crushed . | . . . . . Highest Temperature 319 | . 260 319 . . Average Temperature 92 | . 87 95 . . Received Heat Transfer 786 | . 99 186 90 411 Effects 2 | . . 2 . . Shutdowns 1 | . . 1 . . Interference 1 | . . 1 . . Siege Activations . | . . . . . Martial Activations . | . . . . . Shielding Activations . | . . . . . Robots Disrupted . | . . . . . Combat Hostiles . | . . . . . Robots Corrupted . | . . . . . Combat Hostiles . | . . . . . Parts Fried . | . . . . . Impact Corruptions . | . . . . . Robots Melted 1 | . . 1 . . Combat Hostiles 1 | . . 1 . . Parts Melted 1 | . . 1 . . Heat Transferred 666 | . . 666 . . Parts Sabotaged . | . . . . . Parts Stolen . | . . . . . Parts Stripped . | . . . . . Power Chain Reactions . | . . . . . Alert | -11 -10 -9 -8 -7 ------- Run | Yrd Mat Mat Mat Fac Maximum Alert Level . | . . . . . Low Security (%) 100 | 100 100 100 100 100 Level 1 . | . . . . . Level 2 . | . . . . . Level 3 . | . . . . . Level 4 . | . . . . . Level 5 . | . . . . . High Security . | . . . . . Max Security . | . . . . . Peak Influence 183 | 10 102 70 183 89 Initial 73 | . . 9 16 73 Average 23 | 2 20 18 38 38 Influence Increases 937 | 15 211 297 248 166 Destroy 0b10 Robot/C 440 | . 160 220 60 . Destroy 0b10 Robot/NC 55 | 15 15 5 20 . Destroy Leader 96 | . 24 62 10 . Successful Hack 25 | . . 9 . 16 Destroy Structure 21 | . 12 1 8 . Partial Spotted 15 | . . . 15 . Lose Combat Pursuer 285 | . . . 135 150 Influence Decreases 917 | 15 189 279 125 309 Entered New Map 127 | . . 13 24 90 Time Decay 645 | 15 179 226 71 154 Lost Part 145 | . 10 40 30 65 Squads Dispatched 6 | . . 1 2 3 Investigation 2 | . . . . 2 Extermination . | . . . . . Reinforcement 4 | . . 1 2 1 Assault . | . . . . . Garrison . | . . . . . Intercept . | . . . . . Searches Triggered . | . . . . . Construction Impeded . | . . . . . Haulers Reinforced . | . . . . . Active Scanning Responses . | . . . . . Cargo Convoy Interrupts . | . . . . . Stealth | -11 -10 -9 -8 -7 --------- Run | Yrd Mat Mat Mat Fac Distress Signals 4 | . 1 2 1 . Communications Jammed . | . . . . . Distress Signals . | . . . . . Times Spotted 57 | . 13 16 13 15 Peak Tracking Total 11 | . 3 3 11 7 Tactical Retreats 11 | . . . 4 7 Traps | -11 -10 -9 -8 -7 ------- Run | Yrd Mat Mat Mat Fac Traps Triggered 3 | . 3 . . . Indirectly . | . . . . . Trap Hack Attempts . | . . . . . Triggered . | . . . . . Disarmed 12 | . 6 . 1 5 Reprogrammed 1 | . . 1 . . Reused . | . . . . . Traps Extracted . | . . . . . Installed . | . . . . . Triggered . | . . . . . Machines | -11 -10 -9 -8 -7 ---------- Run | Yrd Mat Mat Mat Fac Machines Disabled . | . . . . . Max in Single Turn . | . . . . . Garrison Access 1 | . . . 1 . Machines Repaired . | . . . . . Machines Dismantled . | . . . . . Machines Sabotaged . | . . . . . Overloaded Fab Kills . | . . . . . Hacking | -11 -10 -9 -8 -7 --------- Run | Yrd Mat Mat Mat Fac Machines Accessed 16 | . 3 6 4 3 Terminals 12 | . 2 5 3 2 Fabricators . | . . . . . Repair Stations . | . . . . . Recycling Units 1 | . 1 . . . Scanalyzers 1 | . . 1 . . Garrison Access 2 | . . . 1 1 Total Hacks 31 | . 5 12 6 8 Successful 15 | . 2 6 4 3 Failed 16 | . 3 6 2 5 Catastrophic 5 | . . 1 1 3 Database Lockouts . | . . . . . Manual . | . . . . . Terminals 23 | . 4 10 4 5 Fabricators . | . . . . . Repair Stations . | . . . . . Recycling Units 1 | . 1 . . . Scanalyzers 2 | . . 2 . . Garrison Access 5 | . . . 2 3 Terminal Hacks 11 | . 1 4 3 3 Alert Level 1 | . . . 1 . Locate Traps 1 | . . 1 . . Disarm Traps 3 | . 1 . 1 1 Reprogram Traps 1 | . . 1 . . Recall Extermination 1 | . . . . 1 Zone Layout 4 | . . 2 1 1 Fabricator Hacks . | . . . . . Repair Station Hacks . | . . . . . Recycling Unit Hacks 1 | . 1 . . . Retrieve Components 1 | . 1 . . . Scanalyzer 2 | . . 2 . . Retrieve Study 2 | . . 2 . . Garrison Access Hacks 1 | . . . 1 . Seal Access 1 | . . . 1 . Unauthorized Hacks . | . . . . . Terminals . | . . . . . Fabricators . | . . . . . Repair Stations . | . . . . . Recycling Units . | . . . . . Scanalyzers . | . . . . . Garrison Access . | . . . . . Data Cores Recovered . | . . . . . Used . | . . . . . Hacking Detections 9 | . 1 3 2 3 Full Trace Events 2 | . . . . 2 Feedback Events . | . . . . . Feedback Blocked . | . . . . . Robot Schematics Acquired . | . . . . . Robots Built . | . . . . . Authchips . | . . . . . Time . | . . . . . Total Robot Build Rating . | . . . . . Part Schematics Acquired . | . . . . . Parts Built . | . . . . . Authchips . | . . . . . Time . | . . . . . Total Part Build Rating . | . . . . . Part Studies Acquired 2 | . . 2 . . Parts Repaired . | . . . . . Time . | . . . . . Parts Recycled . | . . . . . Recycled Matter . | . . . . . Retrieved Matter . | . . . . . Retrieved Components 1 | . 1 . . . Parts Scanalyzed . | . . . . . Part Schematics Acquired . | . . . . . Parts Damaged . | . . . . . Bothacking | -11 -10 -9 -8 -7 ------------ Run | Yrd Mat Mat Mat Fac Used RIF Installer . | . . . . . Robots Hacked . | . . . . . Non-combat . | . . . . . Combat . | . . . . . Robot Hacks Applied . | . . . . . Relay Couplers Released . | . . . . . Fabnet Peak Effective % . | . . . . . Robots Rewired . | . . . . . Allies Hacked . | . . . . . Hacks Repelled . | . . . . . Allies | -11 -10 -9 -8 -7 -------- Run | Yrd Mat Mat Mat Fac Total Allies . | . . . . . Largest Group . | . . . . . Highest-Rated Group . | . . . . . Highest-Rated Ally . | . . . . . Total Orders . | . . . . . Ally Attacks . | . . . . . Total Damage . | . . . . . Kills . | . . . . . Allies Corrupted . | . . . . . Allies Melted . | . . . . . Intel | -11 -10 -9 -8 -7 ------- Run | Yrd Mat Mat Mat Fac Active Infowar (turns) 2143 | 14 882 744 294 209 Sensors 414 | . . 247 . 167 Seismic 2143 | 14 882 744 294 209 Robot Analysis Total . | . . . . . Derelict Logs Recovered . | . . . . . Drone Launches . | . . . . . Drone Recoveries . | . . . . . Exploration | -11 -10 -9 -8 -7 ------------- Run | Yrd Mat Mat Mat Fac Turns Passed 2378 | 83 889 771 294 341 Spaces Moved 1903 | 53 697 397 302 454 Core 211 | 13 . . . 198 Treads . | . . . . . Legs . | . . . . . Wheels 425 | 40 385 . . . Hover . | . . . . . Flight 1267 | . 312 397 302 256 Fastest Speed 29 | 50 80 30 29 29 Average Speed 87 | 79 94 108 70 69 Slowest Speed 194 | 100 112 194 114 155 Overloaded Moves . | . . . . . Propulsion Burnouts . | . . . . . Robots Hopped 2 | . . . 2 . Potential Cave-ins . | . . . . . Cave-ins Triggered . | . . . . . Exploration Rate (%) 36 | 4 91 38 33 16 Regions Visited 4 Branch Regions . Pre-discovered Areas . | . . . . . Known Exits Taken . | . . . . . Unknown Exits Taken 4 | 1 1 1 1 . Scrap Searched . | . . . . . Spaces Dug . | . . . . . Terrain Destroyed 21 | . 11 . 10 . Melee . | . . . . . Projectile . | . . . . . AOE 21 | . 11 . 10 . Terrain Rammed . | . . . . . Walls Destroyed . | . . . . . Machines Disabled . | . . . . . Actions | -11 -10 -9 -8 -7 --------- Run | Yrd Mat Mat Mat Fac Total 2470 | 78 868 667 380 477 Wait 396 | . 110 209 61 16 Move 1895 | 52 696 396 297 454 Hop 2 | . . . 2 . Pick Up 33 | 10 12 7 3 1 Fast Attach 6 | 1 1 . 4 . Attach 20 | 6 1 7 4 2 Detach 3 | . . . 3 . Swap 12 | 1 6 3 . 2 Drop 12 | . 8 . 4 . Fire 89 | 8 34 45 2 . Melee . | . . . . . Ram 2 | . . . . 2 Kick . | . . . . . Crush . | . . . . . Escape Stasis . | . . . . . Rewire . | . . . . . Trap . | . . . . . Miscellaneous . | . . . . . Route ------- -11/Scrapyard -10/Materials (discovered 3 exits: *Mat x2 / [*Min]) -9/Materials -8/Materials -7/Factory History --------- Turn | Location | Event 9 | -11/Scrapyard | Discovered new exit (range 16) 84 | -11/Scrapyard | Entered Materials 174 | -10/Materials | Discovered new exit (range 12) 210 | -10/Materials | Discovered new exit (range 15) 301 | -10/Materials | Build established: Mutant 491 | -10/Materials | Discovered new exit (range 13) 973 | -10/Materials | Entered another Materials area 973 | -9/Materials | Evolved 2 slots: Propulsion x1, Utility x1 1226 | -9/Materials | Lost 3 parts (1p1n1w) 1555 | -9/Materials | Discovered new exit (range 16) 1616 | -9/Materials | Build established: Scavenger-Mutant 1744 | -9/Materials | Entered another Materials area 1744 | -8/Materials | Evolved 2 slots: Propulsion x1, Utility x1 2033 | -8/Materials | Discovered new exit (range 16) 2038 | -8/Materials | Entered Factory 2038 | -7/Factory | Evolved 2 slots: Propulsion x1, Utility x1 2178 | -7/Factory | Lost 4 parts (1p3n) 2248 | -7/Factory | Core integrity fell below 50% 2268 | -7/Factory | Core integrity fell below 20% 2379 | -7/Factory | Destroyed by S-27 Virus with Autogun Last Messages --------------- Downloaded map data. 02077_ ALERT: Suspicious activity at Terminal F001. Dispatching Investigation squad. 02087_ K-01 Serf collects debris. 02131_ VTOL Module+ destroyed. 02131_ Surge Thruster destroyed. 02131_ Slammed into Y-54 Guardian. 02134_ Lgt. Ion Engine destroyed. 02147_ Surge Thruster destroyed. 02151_ Slammed into R-06 Scavenger. 02206_ Sensor Array destroyed. 02226_ Critical hit (Burn: +37). 02240_ U-05 Engineer destroyed. 02247_ Seismic Detector destroyed. 02254_ ALERT: Hostiles spotted, dispatching reinforcements to Terminal F005. 02258_ M-28 Smith repairs G-47 Trooper. 02270_ Utility Shielding destroyed. 02365_ K-01 Serf cleans the DSF Access. 02377_ Sml. Storage Unit destroyed. Map ----- +----------------------------------------------------+ | ??????????????????????????# | | ??????????????????????????+ #### | | ??????????????????????????# #??? | | ??????????????????????????# ###########/###??? | | ??????????????????????????# #???????? ????? | | ??????????????????????????# #??????? ????? | | ??????????????????????????# #?????? ????? | | ??????????????????????????# #????? ????? | | ??????????????????????????# #????# ????? | | ??????????????????????????# #????# ????? | | ??????????????????????????# #????# ???? | | ???????????????????###+#### #????# ???? | | ???????????????????# #????# ???? | | ???????????????????# #????? ???? | | ???????????????????# #??????? ???? | | ???????????????????# #???????? ???? | | ???????????????????+ #????????????????? | | ???????????????????# k#????????????????? | | ???????????????????# #????????????????? | | ???????????????????# ##???????????????? | | ???????????????????# k T#???????????????? | | ???????????????????# #???????????????? | | ???????????????????+ ##???????????????? | | ???????????????????# [ #????????????????? | | ???????????????????# #????????????????? | | ???????????????????# @ #????????????????? | | ????????????? s a s k#????????????????? | | ?????????? s g u#????????????????? | | ??????????? r r #????????????????? | | ??????????? sk #????????????????? | | ??????????? u #????????????????? | | ????????????###+########### #????????????????? | | ??????????????????????????? u #????????????????? | | ??????????????????????????? ????????????????? | | ??????????????????????????? ???????????????? | | ??????????????????????????? ??????????????? | | ???????????????????????????? ?????????????? | | ???????????????????????????? ??????????????? | | ????????????????????????????#####????????????????? | | ?????????????????????????????????????????????????? | | ?????????????????????????????????????????????????? | | ?????????????????????????????????????????????????? | | ?????????????????????????????????????????????????? | | ?????????????????????????????????????????????????? | | ?????????????????????????????????????????????????? | | ?????????????????????????????????????????????????? | | ?????????????????????????????????????????????????? | | ?????????????????????????????????????????????????? | | ?????????????????????????????????????????????????? | | ?????????????????????????????????????????????????? | +----------------------------------------------------+ Best States ------------- Heat Dissipation 34 Energy Generation 10 Energy Capacity 125 Matter Stores 300 Matter Capacity 300 Sight Range 16 Robot Scan Range 14 Terrain Scan Density 10 Armor Coverage 150 Utility Shielding 33 Evasion (%) 64 Offensive Hacking 10 Item Schematics ----------------- None Robot Schematics ------------------ None Fabricated ------------ Nothing Repaired ---------- Nothing Studied --------- VTOL Module | -9/Materials | Hacked Flight Unit | -9/Materials | Hacked Alien Tech Used ----------------- None Achievements -------------- None Challenges ------------ None Game ------ Seed ScrapLobotomyRedirector Manual? 0 Play Time 00:23:40 Cumulative 34.3 hours Start 2026.09.05 @ 14:40:08 End 2026.09.05 @ 15:00:35 Sessions 1 Manual Loads 0 Difficulty Rogue Special Mode None Game No. 84 Rogue 67 Adventurer 15 Explorer 2 Win Type - Total 0 Types 0/0/0/0/0/0/0/0/0/0 Lore% 25 Gallery% 26 Achievement% 22 Wizard Run 0 Options --------- Layout 1 ASCII 0 Keyboard 0 Movement Mouse Keybinds 0 Fullscreen 1 Font 24/Smallcaps Map View 50x35 Zoom Use 0% Tactical HUD 1 Map Filters NONE Filters NONE Steam 1 RUN: 8c1a4792-2102-435c-a732-66dfb8de9d18